bitfinex/quotes_ETHUSD_20250131
["timestamp","ask_amount","ask_price","bid_price","bid_amount"]
[1738293474780,0.41259572,3235.1,3234.4,0.6667]
[1738293475003,0.0246852,3235.1,3234.5,3.09165]
[1738293475483,3.09131,3234.9,3234.3,3.09185]
[1738293475652,0.0246852,3234.8,3234.3,3.09185]
[1738293476182,3.1159952,3234.9,3234.3,3.09185]
[1738293476354,3.1159952,3234.9,3234.3,3.77363662]
[1738293477588,3.09131,3234.9,3234.3,3.77363662]
[1738293478983,0.0246852,3235.0,3234.3,3.77363662]
[1738293479166,3.1158952,3235.0,3234.4,3.09176]
[1738293481287,0.11006853,3234.9,3234.4,3.09176]
[1738293481950,0.11006853,3234.9,3234.4,3.46911466]
[1738293483887,3.20141853,3234.9,3234.4,0.37735466]
[1738293484188,3.20141853,3234.9,3234.2,3.0919]
[1738293484189,3.20141853,3234.9,3234.3,3.09184]
[1738293485214,0.11006853,3234.9,3234.5,3.0916]
[1738293485378,0.11006853,3234.9,3234.8,3.75808]
[1738293485579,0.7836,3236.0,3235.5,3.09071]
[1738293485992,0.11040321,3235.9,3235.5,3.09071]
[1738293486290,3.8985152,3236.0,3235.3,3.09088]
[1738293486490,0.11056304,3235.9,3235.3,3.09088]
[1738293486814,0.11056304,3235.9,3235.4,3.09078]
[1738293487308,0.11056304,3235.9,3235.4,3.09072]
[1738293487997,0.11056304,3235.9,3235.5,3.09071]
[1738293489091,3.0905,3235.8,3235.1,3.091]
[1738293489311,0.7836,3236.0,3235.5,3.09064]
[1738293489512,0.11056304,3235.7,3235.5,3.09064]
[1738293489811,0.11056304,3235.7,3235.3,3.09089]
[1738293489812,3.1150452,3235.9,3235.3,3.09089]
[1738293490110,3.1150452,3235.9,3235.1,3.09106]
[1738293490403,0.11056304,3235.8,3235.2,3.09098]
[1738293490771,0.11056304,3235.8,3235.4,3.0908]
[1738293491181,0.7836,3236.0,3235.4,3.0908]
[1738293491383,0.11056304,3235.7,3235.4,3.0908]
[1738293491612,0.7836,3236.0,3235.4,3.0908]
[1738293491788,0.11056304,3235.6,3235.4,3.0908]
[1738293491989,0.7836,3236.0,3235.5,3.09071]
[1738293492271,0.7836,3236.0,3235.3,3.09083]
[1738293492585,0.11056304,3235.9,3235.3,3.09083]
[1738293493111,0.11056304,3235.9,3235.2,3.12187539]
[1738293493418,0.11056304,3235.9,3235.4,3.09076]
[1738293494111,0.11056304,3235.9,3235.2,3.09097]
[1738293494295,3.09043,3235.8,3235.2,3.09097]
[1738293494792,0.11056304,3235.7,3235.2,3.09097]
[1738293494997,0.11056304,3235.7,3235.2,3.7691996]
[1738293496915,3.09106,3235.2,3234.5,3.09163]
[1738293497075,3.9272752,3235.1,3234.5,3.09163]
[1738293497413,3.09135,3234.9,3234.2,3.09194]
[1738293497619,3.1160352,3234.9,3234.3,3.09184]
[1738293497779,0.11083065,3234.8,3234.3,3.09184]
[1738293497974,3.09157,3234.6,3234.0,0.6667]
[1738293498200,3.0918,3234.4,3233.8,3.09233]
[1738293498402,3.1166052,3234.3,3233.6,3.09247]
[1738293498603,3.22707162,3234.3,3233.6,3.09247]
[1738293498923,0.11046642,3234.3,3233.6,0.03092213]
[1738293499122,0.7583,3234.5,3234.1,3.09204]
[1738293499288,0.8213,3234.8,3234.2,3.09195]
[1738293499478,3.9127,3234.8,3234.1,3.09204]
[1738293499923,3.9373852,3234.8,3234.1,3.09204]
[1738293500088,0.8213,3234.8,3234.2,3.09192]
[1738293500420,3.9373852,3234.8,3234.1,3.09204]
[1738293500784,3.09158,3234.6,3233.9,3.09223]
[1738293500986,0.0246852,3234.5,3233.9,3.09223]
[1738293501583,0.0246852,3234.5,3233.4,3.0]
[1738293501584,3.09202,3234.2,3233.4,3.0]
[1738293501929,3.09202,3234.2,3233.6,3.09251]
[1738293504822,0.0246852,3234.3,3233.6,3.09251]
[1738293505007,0.0246852,3234.3,3233.5,3.09257]
[1738293505210,3.09187,3234.3,3233.7,3.09242]
[1738293505421,3.09198,3234.2,3233.7,0.618499]
[1738293506008,0.777,3233.9,3233.3,3.09277]
[1738293506217,0.0246852,3233.8,3233.3,3.09277]
[1738293506410,3.86924,3233.9,3233.3,3.09277]
[1738293506610,0.777,3233.9,3233.3,3.09277]
[1738293506928,0.777,3233.9,3233.4,3.09271]
[1738293507507,0.0246852,3233.8,3233.3,0.62166855]
[1738293507904,3.0925,3233.7,3233.0,3.09302]
[1738293508649,3.0925,3233.7,3233.1,3.09298]
[1738293509519,3.09262,3233.5,3232.8,3.2601053]
[1738293509849,3.09262,3233.5,3232.8,0.1668953]
[1738293509850,0.8206,3233.4,3232.8,0.1668953]
[1738293510003,0.8452852,3233.4,3232.8,3.2601853]
[1738293510401,0.8206,3233.4,3232.8,0.57998383]
[1738293510601,0.8206,3233.4,3232.8,3.29104506]
[1738293510816,0.0246852,3233.3,3232.8,3.2601153]
[1738293511237,0.0246852,3233.3,3232.8,0.1668953]
[1738293511559,3.1175852,3233.3,3232.8,0.1668953]
[1738293512054,3.20258807,3233.2,3232.8,0.1668953]
[1738293512358,3.84468,3233.0,3232.8,0.1668953]
[1738293512554,3.1178752,3232.9,3232.8,0.1668953]
[1738293512712,3.22738958,3232.9,3232.8,0.1668953]
[1738293513306,4.00908958,3232.9,3232.8,0.1668953]
[1738293513531,4.55908958,3232.9,3232.8,0.1668953]
[1738293513734,5.32431654,3232.9,3232.8,0.1668953]
[1738293513952,5.29963134,3232.9,3232.8,0.1668953]
[1738293514454,5.32431654,3232.9,3232.8,0.1668953]
[1738293515932,5.29963134,3232.9,3232.8,0.1668953]
[1738293516144,5.32431654,3232.9,3232.8,0.1668953]
[1738293517965,5.29963134,3232.9,3232.8,0.1668953]
[1738293518815,5.32431654,3232.9,3232.8,0.1668953]
[1738293519756,4.74963134,3232.9,3232.8,0.1668953]
[1738293519924,0.89121438,3232.9,3232.8,0.1668953]
[1738293521021,3.98440438,3232.9,3232.8,0.1668953]
[1738293526575,0.10951438,3232.9,3232.8,0.1668953]
[1738293526779,3.8854352,3233.3,3232.8,0.1668953]
[1738293526979,0.10882221,3232.9,3232.8,0.1668953]
[1738293527323,3.09312,3233.0,3232.8,0.1668953]
[1738293527526,0.10884453,3232.9,3232.8,0.1668953]
[1738293528018,4.6019065,3232.9,3232.8,0.1668953]
[1738293528527,5.1519065,3232.9,3232.8,0.1668953]
[1738293529223,5.1765917,3232.9,3232.8,0.1668953]
[1738293529948,5.1519065,3232.9,3232.8,0.1668953]
[1738293530424,5.1765917,3232.9,3232.8,0.1668953]
[1738293531216,4.6265917,3232.9,3232.8,0.1668953]
[1738293531417,7.6265917,3232.9,3232.8,0.1668953]
[1738293531606,8.1519065,3232.9,3232.8,0.1668953]
[1738293532116,8.1594065,3232.9,3232.8,5.3e-06]
[1738293534265,8.76306495,3232.9,3232.8,5.3e-06]
[1738293534828,3.09386,3232.2,3232.1,0.005]
[1738293535028,4.226246,3232.2,3232.1,0.005]
[1738293535224,4.91704862,3232.2,3232.1,0.005]
[1738293535429,4.92454862,3232.2,3232.1,0.005]
[1738293535859,4.91704862,3232.2,3232.1,0.005]
[1738293536080,4.90954862,3232.2,3232.1,0.005]
[1738293536983,4.91704862,3232.2,3232.1,0.005]
[1738293537313,0.8126,3231.0,3230.2,0.005]
[1738293537582,3.0,3231.8,3230.3,0.6717]
[1738293537583,3.90735,3231.3,3230.3,0.6717]
[1738293537758,3.09475,3231.3,3230.6,3.0953]
[1738293538267,0.8126,3231.6,3230.7,3.767]
[1738293538268,0.13309409,3231.2,3230.7,3.767]
[1738293538468,0.10840889,3231.2,3230.8,3.0952]
[1738293538676,3.09463,3231.5,3230.8,3.0952]
[1738293538854,0.10782415,3231.1,3230.9,3.09509]
[1738293539060,0.8126,3231.6,3231.0,3.09501]
[1738293539242,3.09457,3231.5,3230.7,3.76697]
[1738293539441,3.20239415,3231.5,3230.8,0.376697]
[1738293540188,3.20239415,3231.5,3230.7,3.76697]
[1738293540189,3.09473,3231.3,3230.7,3.76697]
[1738293540346,3.20239415,3231.5,3230.9,3.09509]
[1738293540549,0.10774965,3231.4,3231.0,3.09497]
[1738293540781,0.10774965,3231.4,3230.7,3.76698]
[1738293540999,3.1191252,3231.6,3230.9,3.09505]
[1738293541231,0.10782415,3231.3,3230.9,3.09505]
[1738293541530,0.10782415,3231.3,3230.7,3.76698]
[1738293541531,3.71578552,3231.6,3231.0,3.095]
[1738293541683,3.71578552,3231.6,3230.8,3.0952]
[1738293541684,0.10782415,3231.2,3230.8,3.0952]
[1738293541888,3.09464,3231.4,3230.8,3.0952]
[1738293542188,0.0246852,3231.3,3230.8,3.0952]
[1738293542388,0.10780554,3231.3,3230.8,3.0952]
[1738293542583,0.10780554,3231.3,3230.8,3.09512]
[1738293542890,3.09473,3231.3,3230.7,0.6717]
[1738293543328,0.10780554,3231.2,3230.7,0.6717]
[1738293543644,3.09457,3231.5,3230.9,3.09503]
[1738293543841,3.09457,3231.5,3230.7,6.86218]
[1738293544139,3.09466,3231.4,3230.7,3.76694]
[1738293544348,3.09466,3231.4,3230.8,3.09519]
[1738293544543,3.09466,3231.4,3230.7,3.76694]
[1738293544857,3.8238227,3231.4,3230.8,3.09518]
[1738293545006,0.8131,3231.3,3230.7,3.76694]
[1738293545541,0.10778318,3231.2,3230.8,3.09518]
[1738293546049,3.1194152,3231.3,3230.7,3.767]
[1738293546255,0.10778318,3231.1,3230.7,3.767]
[1738293546454,3.09465,3231.4,3230.7,3.767]
[1738293546630,0.10780925,3231.0,3230.7,3.767]
[1738293546826,3.09482,3231.2,3230.7,0.6717]
[1738293547061,0.10780925,3230.9,3230.7,0.6717]
[1738293547358,3.40677052,3231.2,3230.5,3.09546]
[1738293547359,0.8169,3231.0,3230.5,3.09546]
[1738293547524,0.10780925,3230.8,3230.6,3.09537]
[1738293547869,3.09548,3230.6,3230.2,0.005]
[1738293548161,3.09568,3230.3,3230.2,0.005]
[1738293548309,0.62985092,3230.6,3230.2,0.005]
[1738293548310,1.43605092,3230.6,3230.2,0.005]
[1738293548514,3.90139,3230.9,3230.2,3.10077]
[1738293548711,0.8062,3230.9,3230.2,3.10077]
[1738293548972,3.09483,3231.2,3230.2,0.005]
[1738293549149,0.10771984,3230.8,3230.6,3.0953]
[1738293549329,0.10771984,3230.8,3230.4,3.0955]
[1738293549517,3.9013,3231.0,3230.3,3.09563]
[1738293549713,0.10764531,3230.7,3230.3,3.1265829]
[1738293549977,3.1198152,3230.9,3230.2,3.10075]
[1738293550139,0.10764531,3230.6,3230.2,3.10075]
[1738293550342,3.9013,3231.0,3230.4,3.09558]
[1738293550532,0.8062,3231.0,3230.3,3.09568]
[1738293550875,0.8062,3231.0,3230.5,3.09548]
[1738293551241,0.10758568,3230.9,3230.6,3.76709]
[1738293551450,0.0246852,3231.1,3230.3,3.76738]
[1738293551650,3.20280568,3230.8,3230.2,0.005]
[1738293551844,0.8178,3230.9,3230.2,0.005]
[1738293552061,0.10760804,3230.7,3230.3,3.09565]
[1738293552243,0.8424852,3230.9,3230.2,3.10078]
[1738293552465,0.10760804,3230.6,3230.2,3.10078]
[1738293552635,3.09522,3230.8,3230.2,3.10078]
[1738293552834,0.10760804,3230.5,3230.2,3.10078]
[1738293553074,3.09522,3230.8,3230.2,3.10078]
[1738293553386,3.82969597,3230.8,3230.2,3.10078]
[1738293553677,0.10760804,3230.7,3230.2,3.10078]
[1738293554082,3.9375952,3230.9,3230.2,3.10078]
[1738293554467,0.10760804,3230.8,3230.3,3.09564]
[1738293555981,0.10760804,3230.8,3230.2,0.005]
[1738293556160,0.0246852,3230.7,3230.2,0.005]
[1738293556365,0.0246852,3230.7,3230.2,3.10075]
[1738293556590,0.10760804,3230.6,3230.2,3.10075]
[1738293557061,0.10760804,3230.6,3230.4,3.09552]
[1738293557390,0.8178,3230.9,3230.4,3.09552]
[1738293557773,0.31195452,3231.0,3230.4,3.09552]
[1738293557953,3.9222452,3231.2,3230.5,3.09542]
[1738293557954,3.89756,3231.2,3230.5,3.09542]
[1738293558286,3.89756,3231.2,3230.6,3.09536]
[1738293558470,0.1074888,3231.1,3230.7,3.09528]
[1738293559159,0.132174,3231.1,3230.5,3.09544]
[1738293559350,3.227174,3231.1,3230.5,3.09544]
[1738293559550,3.09503,3231.0,3230.2,3.10074]
[1738293559775,0.1074888,3231.1,3230.5,3.09542]
[1738293559994,3.89759,3231.2,3230.6,3.09533]
[1738293559995,0.10752979,3230.9,3230.6,3.09533]
[1738293560299,3.095,3231.1,3230.4,3.09552]
[1738293560482,3.1196852,3231.1,3230.4,3.09552]
[1738293560791,0.10752607,3231.0,3230.5,3.09547]
[1738293561798,0.8027,3231.2,3230.7,0.6717]
[1738293561949,3.84565,3231.4,3230.8,3.0952]
[1738293562149,3.09483,3231.2,3230.6,3.09539]
[1738293562755,0.10756335,3231.1,3230.8,3.09512]
[1738293562985,3.84563,3231.4,3230.7,3.09521]
[1738293563292,0.10756335,3231.0,3230.7,3.09521]
[1738293563496,0.0246852,3231.3,3230.8,3.0952]
[1738293563794,3.84563,3231.4,3230.8,3.0952]
[1738293563956,0.10756335,3231.2,3230.8,3.0952]
[1738293564156,3.84563,3231.4,3230.8,3.0952]
[1738293564495,0.10756335,3231.3,3230.8,3.0952]
[1738293564702,3.09483,3231.2,3230.6,3.09536]
[1738293565189,3.09456,3231.5,3231.0,0.6717]
[1738293565406,0.10756335,3231.1,3230.7,3.09529]
[1738293565567,0.7798,3231.1,3230.7,3.09529]
[1738293565768,3.87454,3231.3,3230.8,3.0952]
[1738293566111,0.10769002,3231.2,3230.8,3.0952]
[1738293566594,0.10769002,3231.2,3230.8,3.09512]
[1738293566795,3.09435,3231.7,3231.0,3.09493]
[1738293567096,0.10771983,3231.1,3231.0,3.12587706]
[1738293567297,3.0945,3231.6,3231.0,3.09493]
[1738293567455,0.10771983,3231.1,3231.0,3.09493]
[1738293567655,3.88203,3231.8,3231.1,3.0949]
[1738293567857,4.579652,3231.8,3231.1,3.0949]
[1738293568058,0.0246852,3231.7,3230.7,0.6717]
[1738293568282,1.485322,3231.8,3230.8,3.12614591]
[1738293568283,3.09472,3231.4,3230.8,3.12614591]
[1738293568456,3.88195,3231.8,3230.8,3.12614591]
[1738293568791,0.45016636,3231.7,3230.9,3.09509]
[1738293568998,3.54455636,3231.7,3231.0,3.09498]
[1738293570059,3.09444,3231.6,3231.0,3.09498]
[1738293570673,3.88195,3231.8,3231.2,0.6717]
[1738293570857,0.8002,3232.0,3231.3,3.09471]
[1738293571097,3.09404,3232.1,3231.3,3.50539067]
[1738293571302,0.10779435,3231.9,3231.3,3.50539067]
[1738293571608,3.1188652,3231.9,3231.3,3.09471]
[1738293571762,0.1078018,3231.8,3231.3,3.09471]
[1738293572175,0.1078018,3231.8,3231.2,0.6717]
[1738293572380,3.84442,3231.7,3231.2,0.6717]
[1738293572581,0.10786513,3231.6,3231.2,0.6717]
[1738293572779,3.20234513,3231.6,3231.0,3.76662]
[1738293572997,3.20231513,3231.6,3231.0,3.76662]
[1738293573572,0.10786513,3231.6,3231.0,0.6717]
[1738293573779,0.10786513,3231.6,3231.1,3.12586632]
[1738293574291,0.10786513,3231.6,3231.1,3.09492]
[1738293575312,0.10786513,3231.6,3231.1,3.12586583]
[1738293575720,0.10786513,3231.6,3231.3,3.09468]
[1738293576036,0.10786513,3231.6,3231.1,3.09492]
[1738293576887,3.09464,3231.4,3230.7,3.77443]
[1738293577288,0.10801787,3231.3,3230.8,3.09518]
[1738293577919,3.48972151,3231.6,3230.8,3.09518]
[1738293578123,0.10801787,3231.2,3230.9,3.09511]
[1738293578294,0.60757048,3231.3,3230.9,3.09511]
[1738293578497,0.10801787,3231.1,3230.9,3.09511]
[1738293578871,0.10801787,3231.0,3230.9,3.09511]
[1738293579026,0.60757048,3231.3,3230.9,3.09511]
[1738293579223,0.10801787,3231.0,3230.9,3.09511]
[1738293579442,0.60757048,3231.3,3230.9,3.09511]
[1738293580052,0.10801787,3231.2,3230.9,3.09511]
[1738293580853,0.60757048,3231.3,3230.9,3.09511]
[1738293582593,0.75,3231.7,3231.0,3.09498]
[1738293582779,3.09489,3231.2,3230.5,3.09548]
[1738293582949,3.09494,3231.1,3230.5,3.09548]
[1738293583145,3.20278651,3231.1,3230.5,3.09548]
[1738293583347,3.8498,3231.3,3230.5,3.09548]
[1738293583557,3.789285,3231.2,3230.6,3.09539]
[1738293583875,0.10784651,3231.1,3230.6,3.09539]
[1738293584678,0.10784651,3231.1,3230.8,3.09519]
[1738293584878,0.10784651,3231.1,3231.0,3.76671]
[1738293585086,0.8027,3231.7,3231.3,3.09472]
[1738293585374,1.192392,3231.7,3231.3,3.09472]
[1738293585578,0.1077869,3231.6,3231.3,3.09472]
[1738293585736,1.192392,3231.7,3231.3,3.09472]
[1738293586134,0.1077869,3231.6,3231.1,3.09486]
[1738293586539,0.1077869,3231.6,3231.0,3.76671]
[1738293586738,0.1077869,3231.6,3231.2,3.09482]
[1738293587055,0.54969831,3231.6,3231.2,3.09482]
[1738293589596,3.64414831,3231.6,3231.0,3.09501]
[1738293590887,0.63125194,3231.5,3231.0,3.09501]
[1738293591204,0.73915435,3231.5,3231.0,3.09501]
[1738293592404,0.10790241,3231.5,3231.1,3.09491]
[1738293592776,0.10790241,3231.5,3231.4,3.09463]
[1738293593093,3.09397,3232.1,3231.4,3.09463]
[1738293593094,0.7512,3232.0,3231.4,3.09463]
[1738293593260,0.10786886,3231.5,3231.4,3.09463]
[1738293593456,3.84525,3232.0,3231.4,3.09463]
[1738293593661,0.10786886,3231.5,3231.4,3.10213]
[1738293593862,0.7512,3232.0,3231.3,0.6717]
[1738293594111,3.09425,3231.8,3231.2,3.09474]
[1738293594775,0.10792847,3231.7,3231.2,3.09474]
[1738293595871,3.84526,3232.0,3231.4,3.09459]
[1738293596064,0.10792847,3231.6,3231.2,3.09474]
[1738293596268,0.8157,3231.5,3231.2,3.09474]
[1738293596470,0.9237216,3231.5,3231.2,3.09474]
[1738293597269,0.9237216,3231.5,3231.0,3.09498]
[1738293597470,0.9237216,3231.5,3231.0,0.03094451]
[1738293597698,0.9237216,3231.5,3231.1,3.09492]
[1738293599939,0.9237216,3231.5,3230.7,3.09524]
[1738293599940,0.0246852,3231.4,3230.7,3.09524]
[1738293600234,3.09473,3231.3,3230.7,3.09524]
[1738293600436,3.2027516,3231.3,3230.7,3.09524]
[1738293600644,0.1080216,3231.3,3230.8,3.09518]
[1738293601293,3.2274568,3231.3,3230.6,3.09533]
[1738293601509,3.09475,3231.3,3230.5,3.12640955]
[1738293601841,3.09469,3231.4,3230.7,3.09529]
[1738293602001,3.09469,3231.4,3230.8,3.09511]
[1738293602394,0.97118262,3231.5,3231.0,3.095]
[1738293602643,0.1080216,3231.3,3230.9,3.1259795]
[1738293602937,0.1080216,3231.4,3231.0,3.09495]
[1738293603232,0.8157,3231.5,3231.0,3.09495]
[1738293603540,0.1080216,3231.3,3231.0,3.09495]
[1738293603711,0.8157,3231.5,3231.0,3.09495]
[1738293603913,0.1080216,3231.2,3231.0,3.09495]
[1738293604121,0.8157,3231.5,3231.0,3.09495]
[1738293604337,0.1080216,3231.1,3230.6,3.09536]
[1738293604636,0.7795,3231.4,3230.4,3.76727]
[1738293604795,3.09498,3231.1,3230.4,3.76727]
[1738293604998,0.7795,3231.0,3230.5,3.09549]
[1738293605643,3.87452,3231.0,3230.4,3.09557]
[1738293605847,0.49794212,3230.9,3230.4,3.09557]
[1738293605998,0.7795,3231.0,3230.5,3.09549]
[1738293606334,0.62143133,3230.7,3230.5,3.09549]
[1738293606633,0.62143133,3230.7,3230.6,0.3095]
[1738293606842,0.62143133,3230.7,3230.3,3.09562]
[1738293607202,3.87454,3231.0,3230.3,3.09562]
[1738293607203,3.09522,3230.8,3230.3,3.09562]
[1738293607397,0.1079173,3230.7,3230.3,3.09562]
[1738293608800,0.63439984,3230.5,3230.3,3.09562]
[1738293609314,0.1079173,3230.4,3230.3,3.09562]
[1738293610501,0.9043173,3230.4,3230.2,0.005]
[1738293610905,0.7554,3230.6,3230.2,0.005]
[1738293611314,0.7554,3230.6,3230.3,3.09568]
[1738293611516,0.7554,3230.6,3230.2,0.005]
[1738293612041,0.7554,3230.6,3230.3,3.0956]
[1738293612216,0.783,3230.9,3230.3,3.0956]
[1738293612416,0.10742917,3230.8,3230.4,3.09551]
[1738293613457,0.10742917,3230.8,3230.5,3.09546]
[1738293613861,0.10742917,3230.8,3230.3,3.12656331]
[1738293614362,0.10742917,3230.8,3230.4,3.09557]
[1738293614738,0.10742917,3230.8,3230.6,3.09534]
[1738293615140,0.783,3230.9,3230.6,3.09534]
[1738293615341,0.8327,3231.2,3230.9,3.0951]
[1738293615666,0.10360124,3231.1,3230.8,3.76686]
[1738293615825,0.8327,3231.4,3230.8,3.76686]
[1738293616028,0.10360124,3231.3,3230.8,3.09516]
[1738293616225,3.9520152,3231.4,3230.8,3.09516]
[1738293616528,0.10360124,3231.3,3230.8,3.09516]
[1738293619769,0.10360124,3231.3,3230.9,3.09508]
[1738293620069,0.10360124,3231.3,3231.1,3.09486]
[1738293620781,0.10360124,3231.3,3230.7,3.09523]
[1738293621141,3.19834124,3231.3,3230.7,3.09523]
[1738293621448,0.10360124,3231.3,3230.8,3.09519]
[1738293621981,3.62219681,3231.3,3230.4,0.6717]
[1738293622275,3.09507,3231.0,3230.4,3.09552]
[1738293622461,3.09507,3231.0,3230.5,0.03095027]
[1738293622641,3.09507,3231.0,3230.4,3.09552]
[1738293622841,0.10374656,3230.9,3230.4,3.09552]
[1738293623244,3.88772,3231.1,3230.5,3.12643182]
[1738293623438,0.10374656,3230.8,3230.5,0.03095182]
[1738293623645,0.7928,3230.7,3230.2,0.005]
[1738293624186,0.7928,3230.7,3230.2,3.10077]
[1738293624369,0.10370931,3230.6,3230.2,3.10077]
[1738293625294,0.10370931,3230.6,3230.3,0.03095355]
[1738293625464,0.7928,3230.7,3230.3,0.03095355]
[1738293625789,0.10370931,3230.5,3230.2,3.13172354]
[1738293626092,0.10370931,3230.4,3230.2,3.13172354]
[1738293626391,0.7928,3230.7,3230.2,3.10077]
[1738293626556,0.10370931,3230.3,3230.2,3.10077]
[1738293626764,0.7928,3230.7,3230.2,3.10077]
[1738293627180,0.10370931,3230.6,3230.2,3.10077]
[1738293628299,0.10370931,3230.6,3230.3,3.12662355]
[1738293628590,0.10370931,3230.6,3230.2,3.10077]
[1738293628996,0.7928,3230.7,3230.2,3.10077]
[1738293629191,0.7928,3230.7,3230.3,3.0956]
[1738293629383,0.7928,3230.7,3230.3,3.12655355]
[1738293629697,0.10370931,3230.6,3230.3,3.12655355]
[1738293629874,0.7928,3230.7,3230.3,0.03095355]
[1738293630079,0.7928,3230.7,3230.2,3.10077]
[1738293631161,0.10370931,3230.6,3230.2,3.10077]
[1738293632299,0.10370931,3230.6,3230.3,0.03095356]
[1738293632608,0.10370931,3230.6,3230.5,3.09549]
[1738293632774,0.8206,3230.9,3230.5,3.09549]
[1738293633307,0.10366831,3230.8,3230.5,3.09549]
[1738293633605,0.10366831,3230.8,3230.6,3.09536]
[1738293633896,0.10366831,3230.7,3230.6,3.09536]
[1738293634318,0.7761,3231.1,3230.6,3.09536]
[1738293634800,0.10366831,3231.0,3230.6,3.09536]
[1738293636217,0.10366831,3231.0,3230.4,3.10304]
[1738293636866,0.10366831,3231.0,3230.5,0.0309502]
[1738293637069,0.10366831,3231.0,3230.4,3.10304]
[1738293637411,0.10366831,3231.0,3230.5,3.1263602]
[1738293637713,0.10366831,3231.0,3230.6,3.09531]
[1738293637918,0.10366831,3231.0,3230.5,3.1263602]
[1738293638578,6.29381831,3231.0,3230.5,0.0309502]
[1738293638783,3.19871831,3231.0,3230.4,3.10306]
[1738293639523,0.10366831,3231.0,3230.6,3.09539]
[1738293639821,0.10366831,3231.0,3230.5,3.12643021]
[1738293639974,3.87102,3231.1,3230.5,3.12643021]
[1738293640174,0.10382854,3230.9,3230.5,3.12643021]
[1738293640378,3.87102,3231.1,3230.5,3.12643021]
[1738293640680,0.7761,3231.1,3230.6,3.09537]
[1738293640897,0.10382854,3231.0,3230.6,3.09537]
[1738293641538,0.7761,3231.1,3230.6,3.09537]
[1738293641819,0.10382854,3230.9,3230.6,3.09537]
[1738293642020,0.7761,3231.1,3230.6,3.09537]
[1738293642331,4.52984145,3231.4,3230.8,3.09517]
[1738293642486,0.10379501,3231.0,3230.9,0.70264696]
[1738293642686,3.90453,3231.4,3230.9,0.70264696]
[1738293642881,0.10381737,3231.0,3230.9,0.70264696]
[1738293643221,3.90453,3231.4,3230.9,0.70264696]
[1738293643425,0.10381737,3231.0,3230.9,4.19253866]
[1738293643725,0.7523,3231.9,3231.0,0.015]
[1738293644018,0.757,3231.4,3230.8,3.09514]
[1738293644385,0.10387697,3231.3,3230.8,3.09514]
[1738293644838,0.10387697,3231.3,3230.9,3.12604657]
[1738293645624,0.757,3231.4,3230.9,3.12604657]
[1738293646016,0.10387697,3231.3,3230.9,3.0951]
[1738293646860,3.09485,3231.2,3230.7,0.6717]
[1738293647022,3.09485,3231.2,3230.5,3.10293]
[1738293647023,3.09485,3231.2,3230.5,3.09543]
[1738293647222,0.10387697,3231.1,3230.6,0.0075]
[1738293648354,0.10387697,3231.1,3230.6,3.10288]
[1738293648669,0.10387697,3231.1,3230.6,0.0075]
[1738293650796,0.10387697,3231.1,3230.6,3.0953]
[1738293651184,0.3955437,3231.3,3230.6,3.0953]
[1738293651394,0.757,3231.4,3230.6,3.0953]
[1738293651886,0.10387697,3231.3,3230.6,3.0953]
[1738293652908,3.09454,3231.5,3230.2,0.2165]
[1738293652909,3.09522,3230.8,3230.2,0.005]
[1738293653103,0.8440852,3230.7,3230.2,0.005]
[1738293653275,0.92323601,3230.7,3230.2,0.005]
[1738293653608,0.94792121,3230.7,3230.2,0.005]
[1738293653776,3.9394152,3230.7,3230.2,0.005]
[1738293654393,4.64287872,3230.7,3230.2,0.005]
[1738293654766,0.10383601,3230.6,3230.2,0.005]
[1738293655369,3.09541,3230.6,3230.2,0.005]
[1738293655900,0.10383601,3230.5,3230.2,0.005]
[1738293658621,6.92648,3230.3,3230.2,0.005]
[1738293658776,8.49153712,3230.3,3230.2,0.005]
[1738293658975,6.86407,3230.1,3230.0,20.005]
[1738293659517,6.96755937,3230.1,3230.0,20.005]
[1738293659877,0.87168937,3230.1,3230.0,20.005]
[1738293663879,0.10348937,3230.1,3230.0,23.10847]
[1738293664135,0.7711,3230.6,3230.2,3.09574]
[1738293664615,0.10307193,3230.5,3230.1,0.03095358]
[1738293664815,0.10307193,3230.5,3230.3,3.12662353]
[1738293665004,0.10307193,3230.5,3230.3,3.09567]
[1738293665821,0.10307193,3230.5,3230.3,3.714823]
[1738293666326,0.10307193,3230.5,3230.3,3.09567]
[1738293666925,0.10307193,3230.5,3230.3,3.12662373]
[1738293667792,0.10307193,3230.5,3230.3,3.09567]
[1738293667994,0.7764,3230.8,3230.3,3.09567]
[1738293668225,0.1032844,3230.4,3230.3,3.09567]
[1738293668397,0.7764,3230.8,3230.1,3.12681328]
[1738293668596,0.1032844,3230.4,3230.1,0.03095328]
[1738293668898,0.7764,3230.8,3230.3,3.09562]
[1738293669528,0.7647,3231.1,3230.4,3.0955]
[1738293670146,3.0,3231.0,3230.4,3.0955]
[1738293671163,0.7647,3231.1,3230.6,3.09537]
[1738293671361,0.7647,3231.1,3230.6,3.77207]
[1738293671516,0.7647,3231.1,3230.4,3.0955]
[1738293672639,3.85965,3231.1,3230.4,3.0955]
[1738293673512,3.85965,3231.1,3230.4,0.0075]
[1738293673734,3.85965,3231.1,3230.5,3.1264297]
[1738293673932,3.85965,3231.1,3230.5,3.09548]
[1738293674362,3.85965,3231.1,3230.5,3.12642968]
[1738293675070,3.85965,3231.1,3230.5,3.09548]
[1738293676261,0.10359006,3231.0,3230.5,3.09548]
[1738293676433,0.10359006,3231.0,3230.5,3.1264297]
[1738293678348,0.10359006,3231.0,3230.6,3.09537]
[1738293678565,0.7647,3231.1,3230.7,0.03094972]
[1738293678750,0.10362733,3230.9,3230.7,0.03094972]
[1738293679074,0.7647,3231.1,3230.7,3.12623972]
[1738293679273,0.10362733,3230.8,3230.7,3.12623972]
[1738293679452,0.7647,3231.1,3230.7,3.74841269]
[1738293679651,5.35,3234.0,3231.1,3.09485]
[1738293679652,0.7851,3231.6,3231.1,3.09485]
[1738293679966,3.87936,3231.8,3231.2,0.03094429]
[1738293680551,0.7851,3231.8,3231.4,3.09459]
[1738293680753,3.09406,3232.0,3231.4,3.09459]